fUSD/lending_fUSD_20240714
["ID","MTS","AMOUNT","RATE_DAILY","PERIOD"]
[332130047,1720979440434,-500.0,0.00013946,2]
[332130049,1720979440444,-500.0,0.00013946,2]
[332130052,1720979440453,-500.0,0.00013946,2]
[332130054,1720979440463,-500.0,0.00013946,2]
[332130056,1720979440472,-786.0,0.00013946,2]
[332130058,1720979440482,-200.50149921,0.00013946,2]
[332130059,1720979440491,-500.0,0.00013946,2]
[332130061,1720979440500,-224.88952521,0.00013946,2]
[332130064,1720979440510,-500.0,0.00013946,2]
[332130065,1720979440519,-500.0,0.00013946,2]
[332130067,1720979440528,-501.51,0.00013946,2]
[332130069,1720979440538,-500.0,0.00013946,2]
[332130071,1720979440547,-500.0,0.00013946,2]
[332130074,1720979440557,-3057.05,0.00013946,2]
[332130075,1720979440566,-500.0,0.00013946,2]
[332130077,1720979440575,-500.0,0.00013946,2]
[332130079,1720979440584,-584.69,0.00013946,2]
[332130082,1720979440593,-500.0,0.00013946,2]
[332130083,1720979440603,-500.0,0.00013946,2]
[332130085,1720979440612,-500.0,0.00013946,2]
[332130088,1720979440621,-500.0,0.00013946,2]
[332130090,1720979440631,-500.0,0.00013946,2]
[332130092,1720979440640,-500.0,0.00013946,2]
[332130094,1720979440649,-500.0,0.00013946,2]
[332130096,1720979440659,-500.0,0.00013946,2]
[332130098,1720979440667,-500.0,0.00013946,2]
[332130100,1720979440677,-500.0,0.00013946,2]
[332130102,1720979440686,-4008.87,0.00013946,2]
[332130104,1720979440695,-500.0,0.00013946,2]
[332130105,1720979440704,-500.0,0.00013946,2]
[332130107,1720979440713,-500.0,0.00013946,2]
[332130110,1720979440723,-500.0,0.00013946,2]
[332130112,1720979440732,-368.02045915,0.00013946,2]
[332130114,1720979440742,-609.06,0.00013946,2]
[332130116,1720979440751,-3006.96,0.00013946,2]
[332130117,1720979440760,-500.0,0.00013946,2]
[332130119,1720979440769,-500.0,0.00013946,2]
[332130122,1720979440779,-500.0,0.00013946,2]
[332130123,1720979440789,-500.0,0.00013946,2]
[332130125,1720979440798,-790.92,0.00013946,2]
[332130127,1720979440810,-552.86497656,0.00013946,2]
[332130129,1720979440819,-935.09,0.0001395,2]
[332130131,1720979440829,-1000.0,0.00013973,5]
[332130133,1720979440838,-48912.3127849,0.0001398,3]
[332130135,1720979440847,-78259.7004558,0.0001398,3]
[332130137,1720979440858,-176.34357662,0.00013989,2]
[332130139,1720979440867,-156.0,0.00013989,2]
[332130141,1720979440876,-14837.3613865,0.00013998,2]
[332130143,1720979440887,-3339.4136154,0.00013998,2]
[332130145,1720979440897,-354.9754782,0.00013998,2]
[332130147,1720979440906,-457.54570602,0.00013999,2]
[332130149,1720979440916,-1188106.21494635,0.00014,2]
[332130172,1720979441134,-801.58,0.00014,2]
[332130174,1720979441147,-8463.46291379,0.00014,2]
[332130176,1720979441158,-307.8334,0.00014,2]
[332130178,1720979441170,-4616.32396427,0.00014,2]
[332130223,1720979441583,-500.0,0.00013781,2]
[332130225,1720979441595,-2094.64763549,0.00013781,2]
[332130228,1720979441608,-1334.04348237,0.00013781,2]
[332130230,1720979441618,-500.0,0.00013836,2]
[332130232,1720979441629,-796.61234671,0.00013889,2]
[332130234,1720979441638,-499.94306039,0.00013891,2]
[332130236,1720979441649,-157.99500998,0.000139,2]
[332130238,1720979441660,-357.85887694,0.00014,2]
[332130241,1720979441675,-410.19142791,0.00014,2]
[332130243,1720979441688,-1018.72929343,0.00014,2]
[332130245,1720979441698,-345.0,0.00014,2]
[332130248,1720979441714,-3400.0,0.00014,2]
[332130256,1720979441782,-1078.28995199,0.00013472,2]
[332130258,1720979441791,-163.94272394,0.00014,2]
[332130260,1720979441803,-5466.90328584,0.00014,2]
[332130263,1720979441818,-2923.62999489,0.00014,2]
[332130265,1720979441829,-157497.27123604,0.00014,2]
[332130267,1720979441838,-428020.55759783,0.00014,2]
[332130269,1720979441850,-501027.98041042,0.00014,2]
[332130271,1720979441861,-23740.82713084,0.00014,2]
[332130273,1720979441872,-6225.8685315,0.00014,2]
[332130276,1720979441889,-507.65898413,0.00014,2]
[332130278,1720979441901,-291.345,0.00014,2]
[332130280,1720979441912,-1130.54686907,0.00014,2]
[332130282,1720979441923,-5273.79059241,0.00014,2]
[332130285,1720979441935,-500.0,0.00014,2]
[332130287,1720979441946,-1146.45957175,0.00014,2]
[332130289,1720979441960,-751.980007,0.00014,2]
[332130291,1720979441972,-39280.72455278,0.00014,2]
[332130294,1720979441983,-1347.10578871,0.00014,2]
[332130300,1720979442038,-1461.34185,0.00014,2]
[332130303,1720979442050,-11239.93934737,0.00014,2]
[332130305,1720979442062,-2045.18655977,0.00014,2]
[332130406,1720979443178,-448.95942964,0.00014,2]
[332130410,1720979443206,-3939.92439593,0.00014,2]
[332130414,1720979443231,-10233.67512417,0.00014,2]
[332130416,1720979443243,-351.83162184,0.00014,2]
[332130425,1720979443333,-392.18203374,0.00013999,2]
[332130427,1720979443343,-441.69784337,0.00014,2]
[332130429,1720979443354,-402.48999276,0.00014,2]
[332130431,1720979443365,-701.33067573,0.00014,2]
[332130434,1720979443376,-4616.80177371,0.00014,2]
[332130441,1720979443434,-374.72962927,0.00014,2]
[332130444,1720979443460,-641.79512689,0.00014,2]
[332130556,1720979444631,-315.12,0.00014,2]
[332130559,1720979444643,-346.27000012,0.00014,2]
[332130561,1720979444654,-22156.93700891,0.00014,2]
[332130563,1720979444666,-1279.97005618,0.00014,2]
[332130565,1720979444677,-1000.0,0.00014,2]
[332130567,1720979444689,-2964.308035,0.00014,2]
[332130638,1720979446261,-306.1022395,0.00013781,2]
[332130639,1720979446273,-193.8977605,0.00013781,2]
[332130640,1720979446283,-500.0,0.00013836,2]
[332130641,1720979446292,-500.0,0.00013891,2]
[332130642,1720979446302,-335.58180304,0.00013946,2]
[332130643,1720979446314,-164.41819696,0.00013946,2]
[332130644,1720979446323,-1253.14624179,0.00014,2]
[332130645,1720979446334,-20962.49106437,0.00014,2]
[332130646,1720979446376,-156.0,0.00013899,2]
[332130647,1720979446386,-7680.38567221,0.00014,2]
[332130648,1720979446397,-4417.52516995,0.00014,2]
[332130649,1720979446409,-1860.25869673,0.00014,2]
[332130650,1720979446421,-658.66336128,0.00014,2]
[332130658,1720979541819,4779.0763,0.00011098,2]
[332130675,1720979676088,2190.99713871,0.00011099,2]
[332130678,1720979723614,347.4,0.00010908,2]
[332130681,1720979726892,796.61234671,0.00011098,2]
[332130682,1720979731911,174.61275923,0.00011098,2]
[332130683,1720979731934,903.67719276,0.00011098,2]
[332130685,1720979740267,1893.22134422,0.00011098,2]
[332130686,1720979760659,545.20703097,0.00011098,2]
[332130687,1720979777872,528.93489931,0.00011098,2]
[332130689,1720979800364,369.18293041,0.00011098,2]
[332130692,1720979848229,176.1986365,0.00011098,2]
[332130699,1720979940384,156.0,0.00011098,2]
[332130701,1720980002484,150.0,0.00011098,2]
[332130702,1720980002698,150.0,0.00011098,2]
[332130703,1720980002880,150.0,0.00011098,2]
[332130704,1720980003076,150.51855371,0.00011098,2]
[332130707,1720980053886,796.61234671,0.00011098,2]
[332130708,1720980097418,630.00456816,0.00011098,2]
[332130712,1720980257762,330.03,0.00010862,2]
[332130713,1720980324196,276.0364611,0.00011098,2]
[332130714,1720980324915,796.61234671,0.00011098,2]
[332130742,1720980564137,1997.76368944,0.00011099,2]
[332130743,1720980564162,1461.01044879,0.00011099,2]
[332130753,1720980597946,796.61234671,0.00011098,2]
[332130759,1720980632446,-156.0,0.00011197,2]
[332130760,1720980632455,-150.0,0.00012301,2]
[332130761,1720980632465,-6639.79989758,0.00012302,2]
[332130762,1720980632477,-659.47,0.00012302,2]
[332130763,1720980632488,-115382.32339542,0.00012302,2]
[332130764,1720980632497,-1000.0,0.00012718,2]
[332130765,1720980632507,-250.0,0.00012783,2]
[332130766,1720980632516,-157.13,0.00012822,2]
[332130767,1720980632525,-559.648773,0.00012858,2]
[332130768,1720980632535,-559.648773,0.00012858,2]
[332130769,1720980632544,-1415.52,0.00012858,2]
[332130770,1720980632554,-181.16,0.00012958,2]
[332130771,1720980632563,-3761.0,0.00012958,2]
[332130772,1720980632572,-330.03,0.00013126,2]
[332130773,1720980632582,-416.37,0.00013126,2]
[332130774,1720980632766,-999.99,0.00013451,2]
[332130775,1720980632777,-1631.34797349,0.00013452,2]
[332130776,1720980632786,-35003.89639072,0.00013452,2]
[332130777,1720980632796,-166.12923383,0.00013472,2]
[332130778,1720980632805,-155.43704552,0.000135,2]
[332130779,1720980632814,-3271.78277745,0.000136,2]
[332130780,1720980632823,-499.99,0.000136,2]
[332130781,1720980632832,-1399.1,0.000136,2]
[332130782,1720980632841,-2841.727,0.00013681,2]
[332130783,1720980632850,-5854.2673,0.00013681,2]
[332130784,1720980632860,-2550.0931,0.00013681,2]
[332130785,1720980632869,-1000.0,0.00013681,2]
[332130786,1720980632878,-701.1564,0.00013681,2]
[332130787,1720980632887,-500.0,0.00013698,2]
[332130788,1720980632897,-341.8,0.00013699,2]
[332130789,1720980632906,-253.86,0.00013699,2]
[332130790,1720980632916,-250.0,0.00013699,2]
[332130791,1720980632925,-819.41,0.00013699,2]
[332130792,1720980632934,-500.0,0.00013699,2]
[332130793,1720980632943,-500.0,0.00013699,2]
[332130794,1720980632952,-646.73,0.00013699,2]
[332130795,1720980632962,-726.09,0.00013699,2]
[332130796,1720980632972,-500.0,0.00013699,2]
[332130797,1720980632981,-504.09,0.00013699,2]
[332130798,1720980632990,-500.0,0.00013699,2]
[332130799,1720980632999,-2568.38,0.00013699,2]
[332130800,1720980633008,-675.83,0.00013699,2]
[332130801,1720980633017,-500.0,0.00013699,2]
[332130802,1720980633026,-500.0,0.00013699,2]
[332130803,1720980633036,-500.0,0.00013699,2]
[332130804,1720980633045,-508.07,0.00013699,2]
[332130805,1720980633054,-500.0,0.00013699,2]
[332130806,1720980633063,-500.0,0.00013699,2]
[332130807,1720980633073,-500.0,0.00013699,2]
[332130808,1720980633082,-3361.56,0.00013699,2]
[332130809,1720980633091,-701.13,0.00013699,2]
[332130810,1720980633100,-500.0,0.00013699,2]
[332130811,1720980633109,-2557.42,0.00013699,2]
[332130812,1720980633118,-500.0,0.00013699,2]
[332130813,1720980633127,-500.0,0.00013699,2]
[332130814,1720980633136,-679.93,0.00013699,2]
[332130815,1720980633145,-345.4587,0.000137,2]
[332130816,1720980633154,-17269.4566,0.000137,2]
[332130817,1720980633163,-1252.7833,0.000137,2]
[332130818,1720980633175,-1000.0,0.00013703,2]
[332130819,1720980633185,-321.25915819,0.00013709,2]
[332130820,1720980633195,-819.41,0.00013754,2]
[332130821,1720980633204,-500.0,0.00013754,2]
[332130822,1720980633215,-500.0,0.00013754,2]
[332130823,1720980633224,-646.73,0.00013754,2]
[332130824,1720980633234,-726.09,0.00013754,2]
[332130825,1720980633243,-500.0,0.00013754,2]
[332130826,1720980633252,-504.09,0.00013754,2]
[332130827,1720980633261,-500.0,0.00013754,2]
[332130828,1720980633271,-675.83,0.00013754,2]
[332130829,1720980633280,-2568.38,0.00013754,2]
[332130830,1720980633289,-500.0,0.00013754,2]
[332130831,1720980633298,-500.0,0.00013754,2]
[332130832,1720980633307,-500.0,0.00013754,2]
[332130833,1720980633316,-508.07,0.00013754,2]
[332130834,1720980633326,-500.0,0.00013754,2]
[332130835,1720980633335,-500.0,0.00013754,2]
[332130836,1720980633345,-500.0,0.00013754,2]
[332130837,1720980633354,-3361.56,0.00013754,2]
[332130838,1720980633363,-701.13,0.00013754,2]
[332130839,1720980633373,-500.0,0.00013754,2]
[332130840,1720980633382,-2557.42,0.00013754,2]
[332130841,1720980633391,-500.0,0.00013754,2]
[332130842,1720980633400,-351.04394767,0.00013754,2]
[332130843,1720980633408,-679.93,0.00013754,2]
[332130844,1720980633417,-550.0,0.00013781,2]
[332130845,1720980633427,-896.13,0.00013781,2]
[332130846,1720980633436,-500.0,0.00013781,2]
[332130847,1720980633446,-500.0,0.00013781,2]
[332130848,1720980633455,-374.28706211,0.00013781,2]
[332130849,1720980633465,-500.0,0.00013781,2]
[332130850,1720980633474,-500.0,0.00013781,2]
[332130851,1720980633483,-500.0,0.00013781,2]
[332130852,1720980633494,-547.43,0.00013781,2]
[332130853,1720980633503,-500.0,0.00013781,2]
[332130854,1720980633513,-874.29,0.00013781,2]
[332130855,1720980633522,-500.0,0.00013781,2]
[332130856,1720980633531,-500.0,0.00013781,2]
[332130857,1720980633540,-500.0,0.00013781,2]
[332130858,1720980633550,-500.0,0.00013781,2]
[332130859,1720980633559,-500.0,0.00013781,2]
[332130860,1720980633568,-500.0,0.00013781,2]
[332130861,1720980633577,-500.0,0.00013781,2]
[332130862,1720980633586,-500.0,0.00013781,2]
[332130863,1720980633595,-500.0,0.00013781,2]
[332130864,1720980633604,-500.0,0.00013781,2]
[332130865,1720980633613,-500.0,0.00013781,2]
[332130866,1720980633623,-500.0,0.00013781,2]
[332130867,1720980633632,-510.14,0.00013781,2]
[332130868,1720980633641,-500.0,0.00013781,2]
[332130869,1720980633651,-500.0,0.00013781,2]
[332130870,1720980633661,-500.0,0.00013781,2]
[332130871,1720980633670,-500.0,0.00013781,2]
[332130872,1720980633680,-500.0,0.00013781,2]
[332130873,1720980633689,-500.0,0.00013781,2]
[332130874,1720980633698,-500.0,0.00013781,2]
[332130875,1720980633707,-500.0,0.00013781,2]
[332130876,1720980633716,-500.0,0.00013781,2]
[332130877,1720980633726,-500.0,0.00013781,2]
[332130878,1720980633735,-500.0,0.00013781,2]
[332130879,1720980633744,-500.0,0.00013781,2]
[332130880,1720980633753,-500.0,0.00013781,2]
[332130881,1720980633762,-500.0,0.00013781,2]
[332130882,1720980633772,-500.0,0.00013781,2]
[332130883,1720980633781,-500.0,0.00013781,2]
[332130884,1720980633791,-500.0,0.00013781,2]
[332130885,1720980633800,-500.0,0.00013781,2]
[332130886,1720980633809,-500.0,0.00013781,2]
[332130887,1720980633819,-500.0,0.00013781,2]
[332130888,1720980633828,-500.0,0.00013781,2]
[332130889,1720980633837,-500.0,0.00013781,2]
[332130890,1720980633846,-500.0,0.00013781,2]
[332130891,1720980633855,-500.0,0.00013781,2]
[332130892,1720980633864,-619.50841167,0.00013781,2]
[332130893,1720980633874,-500.0,0.00013781,2]
[332130894,1720980633883,-500.0,0.00013781,2]
[332130895,1720980633893,-500.0,0.00013781,2]
[332130896,1720980633903,-500.0,0.00013781,2]
[332130897,1720980633912,-500.0,0.00013781,2]
[332130898,1720980633921,-442.58,0.00013781,2]
[332130899,1720980633930,-500.0,0.00013781,2]
[332130900,1720980633940,-177.11843732,0.00013781,2]
[332130901,1720980633950,-500.0,0.00013781,2]
[332130902,1720980633959,-500.0,0.00013781,2]
[332130903,1720980633968,-500.0,0.00013781,2]
[332130904,1720980633978,-162.79030077,0.00013781,2]
[332130905,1720980633987,-500.0,0.00013781,2]
[332130906,1720980633996,-500.0,0.00013781,2]
[332130907,1720980634005,-500.0,0.00013781,2]
[332130908,1720980634016,-500.0,0.00013781,2]
[332130909,1720980634026,-500.0,0.00013781,2]
[332130910,1720980634036,-473.99213449,0.00013781,2]
[332130911,1720980634046,-500.0,0.00013781,2]
[332130912,1720980634055,-500.0,0.00013781,2]
[332130913,1720980634064,-500.0,0.00013781,2]
[332130914,1720980634073,-566.69,0.00013781,2]
[332130915,1720980634082,-500.0,0.00013781,2]
[332130916,1720980634091,-500.0,0.00013781,2]
[332130917,1720980634101,-557.48414055,0.00013781,2]
[332130918,1720980634110,-174.64627088,0.00013781,2]
[332130919,1720980634119,-500.0,0.00013781,2]
[332130920,1720980634128,-500.0,0.00013781,2]
[332130921,1720980634137,-500.0,0.00013781,2]
[332130922,1720980634146,-500.0,0.00013781,2]
[332130923,1720980634156,-500.0,0.00013781,2]
[332130924,1720980634166,-500.0,0.00013781,2]
[332130925,1720980634178,-544.13,0.00013781,2]
[332130926,1720980634188,-500.0,0.00013781,2]
[332130927,1720980634197,-500.0,0.00013781,2]
[332130928,1720980634206,-500.0,0.00013781,2]
[332130929,1720980634216,-500.0,0.00013781,2]
[332130930,1720980634225,-610.26,0.00013781,2]
[332130931,1720980634235,-500.0,0.00013781,2]
[332130932,1720980634244,-500.0,0.00013781,2]
[332130933,1720980634255,-500.0,0.00013781,2]
[332130934,1720980634265,-398.0376981,0.00013781,2]
[332130935,1720980634274,-500.0,0.00013781,2]
[332130936,1720980634283,-500.0,0.00013781,2]
[332130937,1720980634292,-637.97,0.00013781,2]
[332130938,1720980634301,-500.0,0.00013781,2]
[332130939,1720980634310,-500.0,0.00013781,2]
[332130940,1720980634319,-539.7973708,0.00013781,2]
[332130941,1720980634328,-276.13806124,0.00013781,2]
[332130942,1720980634338,-500.0,0.0001379,2]
[332130943,1720980634347,-500.0,0.0001379,2]
[332130944,1720980634356,-500.0,0.0001379,2]
[332130945,1720980634365,-500.0,0.0001379,2]
[332130946,1720980634374,-300.77,0.0001379,2]
[332130947,1720980634384,-500.0,0.0001379,2]
[332130948,1720980634393,-500.0,0.0001379,2]
[332130949,1720980634402,-500.0,0.0001379,2]
[332130950,1720980634411,-500.0,0.0001379,2]
[332130951,1720980634420,-500.0,0.0001379,2]
[332130952,1720980634429,-500.0,0.0001379,2]
[332130953,1720980634439,-500.0,0.0001379,2]
[332130954,1720980634448,-500.0,0.0001379,2]
[332130955,1720980634457,-500.0,0.0001379,2]
[332130956,1720980634467,-500.0,0.0001379,2]
[332130957,1720980634476,-500.0,0.0001379,2]
[332130958,1720980634485,-500.0,0.0001379,2]
[332130959,1720980634495,-500.0,0.0001379,2]
[332130960,1720980634503,-500.0,0.0001379,2]
[332130961,1720980634512,-500.0,0.0001379,2]
[332130962,1720980634522,-500.0,0.0001379,2]
[332130963,1720980634531,-419.94076039,0.0001379,2]
[332130964,1720980634540,-500.0,0.0001379,2]
[332130965,1720980634550,-500.0,0.0001379,2]
[332130966,1720980634560,-500.0,0.0001379,2]
[332130967,1720980634569,-500.0,0.0001379,2]
[332130968,1720980634579,-500.0,0.0001379,2]
[332130969,1720980634588,-500.0,0.0001379,2]
[332130970,1720980634598,-500.0,0.0001379,2]
[332130971,1720980634607,-500.0,0.0001379,2]
[332130972,1720980634617,-500.0,0.0001379,2]
[332130973,1720980634626,-500.0,0.0001379,2]
[332130974,1720980634635,-500.0,0.0001379,2]
[332130975,1720980634645,-500.0,0.0001379,2]
[332130976,1720980634654,-500.0,0.0001379,2]
[332130977,1720980634663,-500.0,0.0001379,2]
[332130978,1720980634673,-500.0,0.0001379,2]
[332130979,1720980634682,-500.0,0.0001379,2]
[332130980,1720980634692,-500.0,0.0001379,2]
[332130981,1720980634701,-567.52,0.0001379,2]
[332130982,1720980634711,-500.0,0.0001379,2]
[332130983,1720980634722,-413.45,0.0001379,2]
[332130984,1720980634731,-500.0,0.0001379,2]
[332130985,1720980634742,-334.75152493,0.0001379,2]
[332130986,1720980634751,-500.0,0.0001379,2]
[332130987,1720980634760,-500.0,0.0001379,2]
[332130988,1720980634769,-500.0,0.0001379,2]
[332130989,1720980634778,-500.0,0.0001379,2]
[332130990,1720980634788,-500.0,0.0001379,2]
[332130991,1720980634797,-500.0,0.0001379,2]
[332130992,1720980634806,-624.51,0.0001379,2]
[332130993,1720980634815,-500.0,0.0001379,2]
[332130994,1720980634825,-500.0,0.0001379,2]
[332130995,1720980634834,-500.0,0.0001379,2]
[332130996,1720980634843,-514.45,0.0001379,2]
[332130997,1720980634853,-2650.1,0.00013791,2]
[332130998,1720980634862,-35009.9324,0.00013791,2]
[332130999,1720980634871,-438.2805,0.00013791,2]
[332131000,1720980634880,-4291.7394,0.00013791,2]
[332131001,1720980634890,-262.83502554,0.00013799,2]
[332131002,1720980634900,-262.83502551,0.00013799,2]
[332131003,1720980634911,-262.83502551,0.00013799,2]
[332131004,1720980634921,-262.83502551,0.00013799,2]
[332131005,1720980634932,-262.83502551,0.00013799,2]
[332131006,1720980634941,-262.83502551,0.00013799,2]
[332131007,1720980634951,-262.83502551,0.00013799,2]
[332131008,1720980634963,-262.83502551,0.00013799,2]
[332131009,1720980634973,-47100.7456447,0.000138,3]
[332131010,1720980634983,-819.41,0.00013809,2]
[332131011,1720980634993,-500.0,0.00013809,2]
[332131012,1720980635003,-500.0,0.00013809,2]
[332131013,1720980635015,-646.73,0.00013809,2]
[332131014,1720980635025,-726.09,0.00013809,2]
[332131015,1720980635035,-500.0,0.00013809,2]
[332131016,1720980635044,-504.09,0.00013809,2]
[332131017,1720980635055,-500.0,0.00013809,2]
[332131018,1720980635066,-2568.38,0.00013809,2]
[332131019,1720980635076,-675.83,0.00013809,2]
[332131020,1720980635087,-500.0,0.00013809,2]
[332131021,1720980635098,-500.0,0.00013809,2]
[332131022,1720980635107,-500.0,0.00013809,2]
[332131023,1720980635118,-508.07,0.00013809,2]
[332131024,1720980635129,-500.0,0.00013809,2]
[332131025,1720980635139,-500.0,0.00013809,2]
[332131026,1720980635150,-500.0,0.00013809,2]
[332131027,1720980635161,-3361.56,0.00013809,2]
[332131028,1720980635173,-701.13,0.00013809,2]
[332131029,1720980635185,-500.0,0.00013809,2]
[332131030,1720980635197,-2557.42,0.00013809,2]
[332131031,1720980635207,-500.0,0.00013809,2]
[332131032,1720980635219,-679.93,0.00013809,2]
[332131033,1720980635228,-7850.12427412,0.00013816,3]
[332131034,1720980635237,-7850.12427412,0.00013825,3]
[332131035,1720980635249,-23550.3728224,0.00013825,3]
[332131036,1720980635259,-7850.12427412,0.00013826,3]
[332131037,1720980635269,-7850.12427412,0.00013835,3]
[332131038,1720980635279,-194.30664547,0.00013835,2]
[332131039,1720980635288,-500.0,0.00013835,2]
[332131040,1720980635297,-500.0,0.00013835,2]
[332131041,1720980635306,-500.0,0.00013835,2]
[332131042,1720980635316,-500.0,0.00013835,2]
[332131043,1720980635326,-500.0,0.00013835,2]
[332131044,1720980635335,-225.62639715,0.00013835,2]
[332131045,1720980635346,-500.0,0.00013835,2]
[332131046,1720980635357,-500.0,0.00013835,2]
[332131047,1720980635366,-500.0,0.00013835,2]
[332131048,1720980635375,-500.0,0.00013835,2]
[332131049,1720980635385,-500.0,0.00013835,2]
[332131050,1720980635395,-500.0,0.00013835,2]
[332131051,1720980635405,-500.0,0.00013835,2]
[332131052,1720980635414,-500.0,0.00013835,2]
[332131053,1720980635424,-150.0,0.00013835,2]
[332131054,1720980635435,-500.0,0.00013835,2]
[332131055,1720980635445,-500.0,0.00013835,2]
[332131056,1720980635455,-500.0,0.00013835,2]
[332131057,1720980635464,-500.0,0.00013835,2]
[332131058,1720980635475,-500.0,0.00013835,2]
[332131059,1720980635484,-500.0,0.00013835,2]
[332131060,1720980635493,-500.0,0.00013835,2]
[332131061,1720980635503,-500.0,0.00013835,2]
[332131062,1720980635513,-500.0,0.00013835,2]
[332131063,1720980635524,-500.0,0.00013835,2]
[332131064,1720980635535,-500.0,0.00013835,2]
[332131065,1720980635546,-500.0,0.00013835,2]
[332131066,1720980635557,-500.0,0.00013835,2]
[332131067,1720980635568,-500.0,0.00013835,2]
[332131068,1720980635578,-500.0,0.00013835,2]
[332131069,1720980635588,-500.0,0.00013835,2]
[332131070,1720980635599,-542.13394577,0.00013835,2]
[332131071,1720980635610,-500.0,0.00013835,2]
[332131072,1720980635620,-500.0,0.00013835,2]
[332131073,1720980635629,-500.0,0.00013835,2]
[332131074,1720980635639,-500.0,0.00013835,2]
[332131075,1720980635650,-500.0,0.00013835,2]
[332131076,1720980635661,-500.0,0.00013835,2]
[332131077,1720980635673,-155.0,0.00013835,2]
[332131078,1720980635683,-500.0,0.00013835,2]
[332131079,1720980635694,-500.0,0.00013835,2]
[332131080,1720980635703,-500.0,0.00013835,2]
[332131081,1720980635712,-500.0,0.00013835,2]
[332131082,1720980635721,-318.8,0.00013835,2]
[332131083,1720980635731,-500.0,0.00013835,2]
[332131084,1720980635739,-630.65,0.00013835,2]
[332131085,1720980635748,-500.0,0.00013835,2]
[332131086,1720980635760,-500.0,0.00013835,2]
[332131087,1720980635770,-500.0,0.00013835,2]
[332131088,1720980635782,-500.0,0.00013835,2]
[332131089,1720980635792,-222.25,0.00013835,2]
[332131090,1720980635802,-500.0,0.00013835,2]
[332131091,1720980635813,-369.12,0.00013835,2]
[332131092,1720980635824,-422.42,0.00013835,2]
[332131093,1720980635833,-500.0,0.00013835,2]
[332131094,1720980635844,-500.0,0.00013835,2]
[332131095,1720980635853,-500.0,0.00013835,2]
[332131096,1720980635862,-526.39,0.00013835,2]
[332131097,1720980635871,-500.0,0.00013835,2]
[332131098,1720980635880,-500.0,0.00013835,2]
[332131099,1720980635889,-500.0,0.00013835,2]
[332131100,1720980635899,-500.0,0.00013835,2]
[332131101,1720980635908,-500.0,0.00013835,2]
[332131102,1720980635918,-500.0,0.00013835,2]
[332131103,1720980635929,-500.0,0.00013835,2]
[332131104,1720980635939,-176.75,0.00013835,2]
[332131105,1720980635950,-500.0,0.00013835,2]
[332131106,1720980635962,-500.0,0.00013835,2]
[332131107,1720980635973,-500.0,0.00013835,2]
[332131108,1720980635982,-500.0,0.00013835,2]
[332131109,1720980635991,-500.0,0.00013835,2]
[332131110,1720980636000,-500.0,0.00013835,2]
[332131111,1720980636011,-500.0,0.00013835,2]
[332131112,1720980636021,-500.0,0.00013835,2]
[332131113,1720980636032,-500.0,0.00013835,2]
[332131114,1720980636043,-500.0,0.00013835,2]
[332131115,1720980636054,-500.0,0.00013835,2]